bitfinex/quotes_BTCUSD_20250614
["timestamp","ask_amount","ask_price","bid_price","bid_amount"]
[1749935770288,1.1884619,105170.0,105160.0,0.38312638]
[1749935770651,1.18846192,105170.0,105160.0,0.19294]
[1749935770860,1.18846186,105170.0,105160.0,0.19294]
[1749935771064,1.17953617,105170.0,105160.0,0.19294]
[1749935771270,1.18846189,105170.0,105160.0,0.19294]
[1749935771479,1.18846187,105170.0,105160.0,0.19294]
[1749935771716,1.18846185,105170.0,105160.0,0.19294]
[1749935771920,1.17953617,105170.0,105160.0,0.19294]
[1749935772123,1.18846188,105170.0,105160.0,0.19294]
[1749935772281,0.57719132,105170.0,105160.0,0.19294]
[1749935772480,1.18846188,105170.0,105160.0,0.19294]
[1749935772686,1.17953617,105170.0,105160.0,0.19294]
[1749935773086,1.18846186,105170.0,105160.0,0.19294]
[1749935773275,1.17953617,105170.0,105160.0,0.19294]
[1749935773555,1.18846188,105170.0,105160.0,0.19294]
[1749935773762,1.18841715,105170.0,105160.0,0.19294]
[1749935773974,1.17953617,105170.0,105160.0,0.19294]
[1749935774182,1.18841715,105170.0,105160.0,0.19294]
[1749935774398,1.18846187,105170.0,105160.0,0.39263569]
[1749935774615,1.18846187,105170.0,105160.0,0.38312638]
[1749935774820,1.18846182,105170.0,105160.0,0.38312638]
[1749935775219,1.18846184,105170.0,105160.0,0.38312638]
[1749935775680,1.17953617,105170.0,105160.0,0.38312638]
[1749935775883,1.18846185,105170.0,105160.0,0.38312638]
[1749935776292,1.18846182,105170.0,105160.0,0.38312638]
[1749935776718,1.18846181,105170.0,105160.0,0.38312638]
[1749935777129,1.18846183,105170.0,105160.0,0.38312638]
[1749935777601,1.17953617,105170.0,105160.0,0.19294]
[1749935778014,1.18846186,105170.0,105160.0,0.19294]
[1749935778239,1.17953617,105170.0,105160.0,0.19294]
[1749935779099,1.18846188,105170.0,105160.0,0.19294]
[1749935779546,1.17953617,105170.0,105160.0,0.19294]
[1749935779762,1.18846187,105170.0,105160.0,0.19294]
[1749935780387,1.18846189,105170.0,105160.0,0.19294]
[1749935780614,1.18846188,105170.0,105160.0,0.19294]
[1749935780829,1.18846189,105170.0,105160.0,0.19294]
[1749935781467,1.17953617,105170.0,105160.0,0.19294]
[1749935781909,1.17953617,105170.0,105160.0,1.06814306]
[1749935781910,0.028589,105170.0,105160.0,1.06814306]
[1749935782132,0.01901529,105170.0,105160.0,1.10866306]
[1749935782355,0.0184327,105170.0,105160.0,1.10866306]
[1749935782578,0.07710616,105180.0,105170.0,0.25039244]
[1749935782870,0.07646068,105180.0,105170.0,0.25039262]
[1749935783077,0.06695365,105180.0,105170.0,0.33703388]
[1749935783286,0.06695365,105180.0,105170.0,0.34654175]
[1749935783498,0.06695363,105180.0,105170.0,0.25039262]
[1749935783717,0.06695369,105180.0,105170.0,0.26090049]
[1749935783942,0.04793806,105180.0,105170.0,0.27040827]
[1749935784163,0.03901374,105180.0,105170.0,0.27040827]
[1749935784379,0.03744501,105180.0,105170.0,0.27040827]
[1749935784601,0.03744499,105180.0,105170.0,0.36655749]
[1749935784812,0.02793784,105180.0,105170.0,0.36655749]
[1749935784997,0.02852088,105180.0,105170.0,0.36655749]
[1749935785206,0.03802821,105180.0,105170.0,0.27040827]
[1749935785409,0.02852088,105180.0,105170.0,0.27140827]
[1749935785622,0.03802821,105180.0,105170.0,0.27140827]
[1749935785837,0.04695235,105180.0,105170.0,0.27140827]
[1749935786044,0.03744502,105180.0,105170.0,0.27140827]
[1749935786259,0.03802811,105180.0,105170.0,0.27140827]
[1749935786954,0.02793788,105180.0,105170.0,0.36755749]
[1749935787171,0.02793787,105180.0,105170.0,0.36755749]
[1749935787600,0.03744501,105180.0,105170.0,0.36755749]
[1749935787817,0.02793785,105180.0,105170.0,0.36755749]
[1749935788289,0.02793784,105180.0,105170.0,0.36755749]
[1749935788538,0.02793783,105180.0,105170.0,0.36755749]
[1749935788769,0.02793784,105180.0,105170.0,0.36755749]
[1749935788990,0.02793783,105180.0,105170.0,0.36755749]
[1749935789431,0.01901374,105180.0,105170.0,0.36755749]
[1749935789634,0.02793784,105180.0,105170.0,0.36755749]
[1749935790042,0.01901374,105180.0,105170.0,0.36755749]
[1749935790480,0.02793783,105180.0,105170.0,0.36755749]
[1749935790701,0.02852088,105180.0,105170.0,0.36755749]
[1749935790911,0.0184307,105180.0,105170.0,0.33903316]
[1749935791335,0.00950669,105180.0,105170.0,0.24288394]
[1749935791546,0.01901356,105180.0,105170.0,0.24288394]
[1749935791758,0.02793747,105180.0,105170.0,0.24288394]
[1749935792175,0.01901347,105180.0,105170.0,0.24288394]
[1749935792618,0.01843069,105180.0,105170.0,0.24288394]
[1749935792844,0.02793748,105180.0,105170.0,0.24288394]
[1749935793055,0.01901347,105180.0,105170.0,0.24288394]
[1749935793475,0.0279374,105180.0,105170.0,0.24288394]
[1749935793715,0.01901347,105180.0,105170.0,0.24288394]
[1749935793931,0.01901347,105180.0,105170.0,0.33903316]
[1749935794796,0.01901347,105180.0,105170.0,0.24288394]
[1749935795002,0.02852034,105180.0,105170.0,0.28340394]
[1749935795424,0.00950669,105180.0,105170.0,0.28340394]
[1749935796882,1.16382957,105190.0,105180.0,0.23976459]
[1749935797116,0.60171223,105190.0,105180.0,0.40511155]
[1749935797317,0.60171207,105190.0,105180.0,0.39560459]
[1749935797526,0.601712,105190.0,105180.0,0.39560459]
[1749935797731,0.23740599,105190.0,105180.0,0.39560459]
[1749935797981,0.22851872,105190.0,105180.0,0.39560459]
[1749935798409,0.23802532,105190.0,105180.0,0.39560459]
[1749935800807,0.23802532,105190.0,105180.0,0.40511155]
[1749935801012,0.78106515,105190.0,105180.0,0.40511155]
[1749935801218,0.78044573,105190.0,105180.0,0.40511155]
[1749935801607,0.77155855,105190.0,105180.0,0.39560477]
[1749935801911,0.78995243,105190.0,105180.0,0.40511182]
[1749935802203,0.78106515,105190.0,105180.0,0.40511182]
[1749935802410,0.78995239,105190.0,105180.0,0.40511182]
[1749935802839,0.80857626,105190.0,105180.0,0.40511191]
[1749935803085,0.8180829,105190.0,105180.0,0.42412592]
[1749935803303,0.04652374,105190.0,105180.0,0.42412592]
[1749935803536,0.65795584,105190.0,105180.0,0.42412546]
[1749935803748,0.66746217,105190.0,105180.0,0.46464546]
[1749935804377,0.65795584,105190.0,105180.0,0.46464546]
[1749935804581,0.66746217,105190.0,105180.0,0.46464546]
[1749935804806,0.66687928,105190.0,105180.0,0.46464546]
[1749935805014,0.65795584,105190.0,105180.0,0.46464546]
[1749935805222,0.67638568,105190.0,105180.0,0.46464546]
[1749935805893,0.67638558,105190.0,105180.0,0.46464546]
[1749935806100,0.66746208,105190.0,105180.0,0.46464546]
[1749935806303,0.67638561,105190.0,105180.0,0.46464546]
[1749935806717,0.66746208,105190.0,105180.0,0.46464546]
[1749935806947,0.67696841,105190.0,105180.0,0.45513859]
[1749935807372,0.68647483,105190.0,105180.0,0.46464546]
[1749935807790,0.69539813,105190.0,105180.0,0.46464546]
[1749935807996,0.68647483,105190.0,105180.0,0.46464546]
[1749935808199,0.6953982,105190.0,105180.0,0.46464546]
[1749935808835,0.69539821,105190.0,105180.0,0.46464546]
[1749935809045,0.68647483,105190.0,105180.0,0.46464546]
[1749935809260,0.69539822,105190.0,105180.0,0.46464546]
[1749935809728,0.68647483,105190.0,105180.0,0.46464546]
[1749935809948,0.69539822,105190.0,105180.0,0.46464546]
[1749935810163,0.68589225,105190.0,105180.0,0.41461859]
[1749935810377,0.67696886,105190.0,105180.0,0.41461859]
[1749935811247,0.68588143,105190.0,105180.0,0.41461859]
[1749935811466,0.68588143,105190.0,105180.0,0.40511163]
[1749935811678,0.69538795,105190.0,105180.0,0.41461859]
[1749935812106,0.68647537,105190.0,105180.0,0.41461859]
[1749935812323,0.6858818,105190.0,105180.0,0.40511163]
[1749935812764,0.68588179,105190.0,105180.0,0.40511163]
[1749935812970,0.6858818,105190.0,105180.0,0.40511163]
[1749935813179,0.6858818,105190.0,105180.0,0.41461859]
[1749935813850,0.67696922,105190.0,105180.0,0.41461859]
[1749935814063,0.6858818,105190.0,105180.0,0.41461859]
[1749935814481,0.68588179,105190.0,105180.0,0.45513859]
[1749935814690,0.6858818,105190.0,105180.0,0.45513859]
[1749935814900,0.67696922,105190.0,105180.0,0.55128781]
[1749935815117,0.68588179,105190.0,105180.0,0.55128781]
[1749935815540,0.67696922,105190.0,105180.0,0.45513859]
[1749935815746,0.6858818,105190.0,105180.0,0.45513859]
[1749935816439,0.68588181,105190.0,105180.0,0.45513859]
[1749935816651,0.65795593,105190.0,105180.0,0.46464546]
[1749935816865,0.67637493,105190.0,105180.0,0.46464546]
[1749935817082,0.05605526,105190.0,105180.0,0.56079468]
[1749935817327,0.66746217,105190.0,105180.0,0.55128781]
[1749935817539,0.05605525,105190.0,105180.0,0.56079468]
[1749935817758,0.65736225,105190.0,105180.0,0.56079468]
[1749935817948,0.66686827,105190.0,105180.0,0.56079468]
[1749935818422,0.6763745,105190.0,105180.0,0.56079468]
[1749935818647,0.67637449,105190.0,105180.0,0.46464546]
[1749935818863,0.68588091,105190.0,105180.0,0.46464546]
[1749935819092,0.67637454,105190.0,105180.0,0.46464546]
[1749935819296,0.66746199,105190.0,105180.0,0.46464546]
[1749935819512,0.67637451,105190.0,105180.0,0.46464546]
[1749935819726,0.66746199,105190.0,105180.0,0.46464546]
[1749935819960,0.67637447,105190.0,105180.0,0.46464546]
[1749935820177,0.67637439,105190.0,105180.0,0.46464546]
[1749935820610,0.03704304,105190.0,105180.0,0.56079468]
[1749935820819,0.02813056,105190.0,105180.0,0.56079468]
[1749935821265,0.01841821,105190.0,105180.0,0.54178004]
[1749935821476,0.04704381,105190.0,105180.0,0.54178004]
[1749935821685,0.00950579,105190.0,105180.0,0.54178004]
[1749935821895,0.01841824,105190.0,105180.0,0.54178004]
[1749935822565,0.00891245,105190.0,105180.0,1.1525932]
[1749935822776,0.00891245,105190.0,105180.0,0.54178004]
[1749935823216,0.00950579,105190.0,105180.0,0.44563082]
[1749935823436,0.00891214,105190.0,105180.0,0.44563082]
[1749935823649,0.72619802,105200.0,105190.0,0.23113856]
[1749935823859,0.73511011,105200.0,105190.0,0.24064471]
[1749935824075,0.72619802,105200.0,105190.0,0.25015104]
[1749935824321,0.12430725,105200.0,105190.0,0.25015113]
[1749935824534,0.73512041,105200.0,105190.0,0.25015113]
[1749935824755,0.75459653,105200.0,105190.0,0.25015113]
[1749935824972,0.75459653,105200.0,105190.0,0.25965728]
[1749935825189,0.13369517,105200.0,105190.0,0.3558065]
[1749935825400,0.76351908,105200.0,105190.0,0.36531256]
[1749935825621,0.75459608,105200.0,105190.0,0.26916289]
[1749935825844,0.75401356,105200.0,105190.0,0.26916289]
[1749935826070,0.75401356,105200.0,105190.0,0.25965692]
[1749935826299,0.1432004,105200.0,105190.0,0.26916289]
[1749935826524,0.75459608,105200.0,105190.0,0.25965692]
[1749935826748,0.11526708,105200.0,105190.0,0.3337796]
[1749935826979,0.72485016,105200.0,105190.0,0.25015086]
[1749935827206,0.7343555,105200.0,105190.0,0.25965683]
[1749935827416,0.73435553,105200.0,105190.0,0.25965683]
[1749935827675,0.72543262,105200.0,105190.0,0.25965692]
[1749935827893,0.73435547,105200.0,105190.0,0.26916289]
[1749935828103,0.72543262,105200.0,105190.0,0.26916289]
[1749935828334,0.73435545,105200.0,105190.0,0.25965692]
[1749935828545,0.13304776,105200.0,105190.0,0.25965692]
[1749935828765,0.72543262,105200.0,105190.0,0.25965692]
[1749935829007,0.7343554,105200.0,105190.0,0.25965692]
[1749935829228,0.72543262,105200.0,105190.0,0.25965692]
[1749935829454,0.74386092,105200.0,105190.0,0.25965692]
[1749935829896,0.73493814,105200.0,105190.0,0.25965692]
[1749935830106,0.74386094,105200.0,105190.0,0.25965692]
[1749935830321,0.74386095,105200.0,105190.0,0.25965692]
[1749935830537,0.73493814,105200.0,105190.0,0.25965692]
[1749935830753,0.74386096,105200.0,105190.0,0.25965692]
[1749935830967,0.74386087,105200.0,105190.0,0.25965692]
[1749935831202,0.73493805,105200.0,105190.0,0.25965692]
[1749935831421,0.74386083,105200.0,105190.0,0.25965692]
[1749935831641,0.73493805,105200.0,105190.0,0.25965692]
[1749935831852,0.74386084,105200.0,105190.0,0.25015086]
[1749935832098,0.73493805,105200.0,105190.0,0.25965692]
[1749935832321,0.74386084,105200.0,105190.0,0.25965692]
[1749935832775,0.74386086,105200.0,105190.0,0.25015086]
[1749935833438,0.74444366,105200.0,105190.0,0.24064471]
[1749935833684,0.75335359,105200.0,105190.0,0.25015086]
[1749935833871,0.74444366,105200.0,105190.0,0.25015086]
[1749935834115,0.75335359,105200.0,105190.0,0.25015086]
[1749935834337,0.94346765,105200.0,105190.0,0.23113874]
[1749935834564,0.74384923,105200.0,105190.0,0.25015158]
[1749935834768,0.73493931,105200.0,105190.0,0.25015158]
[1749935835042,0.74384924,105200.0,105190.0,0.25965782]
[1749935835550,0.74384928,105200.0,105190.0,0.25015158]
[1749935836037,0.7438493,105200.0,105190.0,0.25015158]
[1749935836493,0.73493931,105200.0,105190.0,0.25015158]
[1749935836702,0.74384925,105200.0,105190.0,0.25015158]
[1749935836913,0.12353039,105200.0,105190.0,0.25965782]
[1749935837131,0.73434355,105200.0,105190.0,0.25965782]
[1749935837346,0.73434355,105200.0,105190.0,0.25015158]
[1749935837773,0.72543361,105200.0,105190.0,0.25965782]
[1749935837989,0.73434352,105200.0,105190.0,0.25965782]
[1749935838206,0.7343435,105200.0,105190.0,0.25965782]
[1749935838428,0.72543361,105200.0,105190.0,0.25965782]
[1749935838642,0.74384923,105200.0,105190.0,0.25965782]
[1749935838867,0.73493931,105200.0,105190.0,0.25965782]
[1749935839080,0.74384924,105200.0,105190.0,0.25965782]
[1749935839559,0.74384924,105200.0,105190.0,0.25015158]
[1749935839777,0.73493931,105200.0,105190.0,0.25015158]
[1749935840438,0.74384923,105200.0,105190.0,0.24064525]
[1749935840648,0.74384923,105200.0,105190.0,0.25015158]
[1749935841127,0.73493931,105200.0,105190.0,0.25965782]
[1749935841552,0.74386215,105200.0,105190.0,0.25965782]
[1749935841759,0.74386212,105200.0,105190.0,0.25965782]
[1749935841969,0.74386213,105200.0,105190.0,0.25015158]
[1749935842410,0.73493931,105200.0,105190.0,0.25015167]
[1749935842645,0.84001136,105200.0,105190.0,0.259658]
[1749935842902,0.83108853,105200.0,105190.0,0.259658]
[1749935843118,0.84001136,105200.0,105190.0,0.259658]
[1749935843321,0.74386216,105200.0,105190.0,0.259658]
[1749935843539,0.73493931,105200.0,105190.0,0.259658]
[1749935843747,0.74386213,105200.0,105190.0,0.259658]
[1749935843972,0.73493931,105200.0,105190.0,0.259658]
[1749935844217,0.74386214,105200.0,105190.0,0.259658]
[1749935844449,0.74386214,105200.0,105190.0,0.25015167]
[1749935844450,0.74386216,105200.0,105190.0,0.25015167]
[1749935844663,0.74386216,105200.0,105190.0,0.259658]
[1749935844884,0.74386184,105200.0,105190.0,0.259658]
[1749935845301,0.74386185,105200.0,105190.0,0.259658]
[1749935845517,0.73493931,105200.0,105190.0,0.259658]
[1749935845740,0.74386185,105200.0,105190.0,0.259658]
[1749935846156,0.73493931,105200.0,105190.0,0.259658]
[1749935846807,0.74386186,105200.0,105190.0,0.259658]
[1749935846986,0.73493931,105200.0,105190.0,0.259658]
[1749935847454,0.74386186,105200.0,105190.0,0.259658]
[1749935847667,0.73493931,105200.0,105190.0,0.259658]
[1749935847879,0.74386185,105200.0,105190.0,0.259658]
[1749935848161,0.74386186,105200.0,105190.0,0.259658]
[1749935848416,0.74386185,105200.0,105190.0,0.42504424]
[1749935848645,0.74386186,105200.0,105190.0,0.42504424]
[1749935849081,0.73493931,105200.0,105190.0,0.42504424]
[1749935849294,0.74386185,105200.0,105190.0,0.42504424]
[1749935849535,0.74386184,105200.0,105190.0,0.415538]
[1749935849973,0.73493931,105200.0,105190.0,0.415538]
[1749935850203,0.08453167,105200.0,105190.0,0.42504361]
[1749935850447,0.11304757,105200.0,105190.0,0.41553764]
[1749935850709,0.71493823,105200.0,105190.0,0.42504334]
[1749935850943,0.72386073,105200.0,105190.0,0.26916334]
[1749935851175,0.72386073,105200.0,105190.0,0.46560334]
[1749935851411,0.71493823,105200.0,105190.0,0.46560289]
[1749935851640,0.72386066,105200.0,105190.0,0.45609692]
[1749935851865,0.72444384,105200.0,105190.0,0.44659086]
[1749935852103,0.11304742,105200.0,105190.0,0.45609683]
[1749935852320,0.72386067,105200.0,105190.0,0.41549692]
[1749935852544,0.72386058,105200.0,105190.0,0.39648471]
[1749935852758,0.72386058,105200.0,105190.0,0.40599086]
[1749935852985,0.72386055,105200.0,105190.0,0.41549692]
[1749935853234,0.72386056,105200.0,105190.0,0.41549692]
[1749935853469,0.72386058,105200.0,105190.0,0.40599086]
[1749935853703,0.72444375,105200.0,105190.0,0.39648471]
[1749935853923,0.72386056,105200.0,105190.0,0.39648471]
[1749935854191,0.72386055,105200.0,105190.0,0.40599086]
[1749935854624,0.72386057,105200.0,105190.0,0.41549692]
[1749935854825,0.71493814,105200.0,105190.0,0.39648471]
[1749935855012,0.72386057,105200.0,105190.0,0.40599086]
[1749935855216,0.71493814,105200.0,105190.0,0.40599086]
[1749935855424,0.07560914,105200.0,105190.0,0.39648471]
[1749935855640,0.69592764,105200.0,105190.0,0.39648471]
[1749935855849,0.70485006,105200.0,105190.0,0.39648471]
[1749935856062,0.73342807,105200.0,105190.0,0.39648471]
[1749935856287,0.8390829,105200.0,105190.0,0.37747214]
[1749935856527,0.74293361,105200.0,105190.0,0.39648525]
[1749935856747,0.74293359,105200.0,105190.0,0.41549782]
[1749935856977,0.73401116,105200.0,105190.0,0.41549782]
[1749935857206,0.73401116,105200.0,105190.0,0.40599158]
[1749935857427,0.74293363,105200.0,105190.0,0.40599158]
[1749935857644,0.73401116,105200.0,105190.0,0.40599158]
[1749935857885,0.74790353,105200.0,105190.0,0.42500379]
[1749935858112,0.74790352,105200.0,105190.0,0.42500379]
[1749935858375,0.73898109,105200.0,105190.0,0.42500379]
[1749935858612,0.74790352,105200.0,105190.0,0.41549773]
[1749935858809,0.74790353,105200.0,105190.0,0.42500379]
[1749935859021,0.74790354,105200.0,105190.0,0.42500379]
[1749935859438,0.74790352,105200.0,105190.0,0.41549773]
[1749935859594,0.73898109,105200.0,105190.0,0.41549773]
[1749935859809,0.7479035,105200.0,105190.0,0.41549773]
[1749935860010,0.74790351,105200.0,105190.0,0.41549773]
[1749935860213,0.74790351,105200.0,105190.0,0.42500379]
[1749935860414,0.73898109,105200.0,105190.0,0.42500379]
[1749935860900,0.74790351,105200.0,105190.0,0.42500379]
[1749935861786,0.13709033,105200.0,105190.0,0.41549719]
[1749935862017,0.73898109,105200.0,105190.0,0.41549719]
[1749935862724,0.72947566,105200.0,105190.0,0.41549719]
[1749935862953,0.74790341,105200.0,105190.0,0.41549719]
[1749935863179,0.74790372,105200.0,105190.0,0.41549719]
[1749935863429,0.75740924,105200.0,105190.0,0.41549719]
[1749935863662,0.74790372,105200.0,105190.0,0.41549719]
[1749935863882,0.738981,105200.0,105190.0,0.41549719]
[1749935864111,0.75740657,105200.0,105190.0,0.41549719]
[1749935864590,0.74848643,105200.0,105190.0,0.41549719]
[1749935864842,0.75740657,105200.0,105190.0,0.41549719]
[1749935865340,0.74848643,105200.0,105190.0,0.42500316]
[1749935865594,0.74848643,105200.0,105190.0,0.41549719]
[1749935865799,0.75740655,105200.0,105190.0,0.41549719]
[1749935866023,0.73839578,105200.0,105190.0,0.42500316]
[1749935866243,0.74790121,105200.0,105190.0,0.42500316]
[1749935866468,0.74790122,105200.0,105190.0,0.40599113]
[1749935866681,0.74790123,105200.0,105190.0,0.41549719]
[1749935866892,0.74790124,105200.0,105190.0,0.41549719]
[1749935867337,0.73898109,105200.0,105190.0,0.41549719]
[1749935867748,0.74790122,105200.0,105190.0,0.40599113]
[1749935868368,0.74790122,105200.0,105190.0,0.39648498]
[1749935868597,0.7484867,105200.0,105190.0,0.40599122]
[1749935868802,0.75740698,105200.0,105190.0,0.41549737]
[1749935869008,0.75740687,105200.0,105190.0,0.41549737]
[1749935869213,0.7484867,105200.0,105190.0,0.41549737]
[1749935869674,0.7484867,105200.0,105190.0,0.40595122]
[1749935869886,1.02465991,105200.0,105190.0,0.1873]
[1749935870351,1.02465999,105200.0,105190.0,0.1873]
[1749935870571,1.00623432,105200.0,105190.0,0.1873]
[1749935870814,0.91900526,105200.0,105190.0,0.37743214]
[1749935871064,0.9100851,105200.0,105190.0,0.37743214]
[1749935871281,0.9100851,105200.0,105190.0,0.1873]
[1749935871472,0.91900564,105200.0,105190.0,0.1873]
[1749935871671,0.91900559,105200.0,105190.0,0.1873]
[1749935871921,0.91900561,105200.0,105190.0,0.1873]
[1749935872140,0.91900564,105200.0,105190.0,0.1873]
[1749935872403,0.91900564,105200.0,105190.0,0.0315]
[1749935872625,0.9100851,105200.0,105190.0,0.1873]
[1749935873011,0.91900565,105200.0,105190.0,0.1873]
[1749935873435,1.01515484,105200.0,105190.0,0.1873]
[1749935873675,1.01515485,105200.0,105190.0,0.1873]
[1749935873880,1.00623432,105200.0,105190.0,0.1873]
[1749935874097,1.0151549,105200.0,105190.0,0.1873]
[1749935874313,1.0351549,105200.0,105190.0,0.0315]
[1749935874521,1.13139932,105200.0,105190.0,0.1873]
[1749935874739,1.13139936,105200.0,105190.0,0.1873]
[1749935874975,1.47139941,105200.0,105190.0,0.1873]
[1749935875188,1.46247608,105200.0,105190.0,0.1873]
[1749935875408,1.47139945,105200.0,105190.0,0.1873]
[1749935875624,1.47139946,105200.0,105190.0,0.1873]
[1749935876901,1.37525024,105200.0,105190.0,0.1873]
[1749935877347,1.36632686,105200.0,105190.0,0.1873]
[1749935877560,0.76443701,105200.0,105190.0,0.1873]
[1749935877776,1.36632686,105200.0,105190.0,0.1873]
[1749935878004,1.37525016,105200.0,105190.0,0.1873]
[1749935878404,1.37525022,105200.0,105190.0,0.1873]
[1749935878613,1.36632686,105200.0,105190.0,0.1873]
[1749935878866,1.37525021,105200.0,105190.0,0.1873]
[1749935879275,1.36632686,105200.0,105190.0,0.1873]
[1749935879485,1.37525022,105200.0,105190.0,0.1873]
[1749935879907,0.76443706,105200.0,105190.0,0.1873]
[1749935880141,1.37525021,105200.0,105190.0,0.1873]
[1749935880569,1.36632686,105200.0,105190.0,0.1873]
[1749935880773,1.48032276,105200.0,105190.0,0.1873]
[1749935881200,1.48032266,105200.0,105190.0,0.1873]
[1749935881420,1.47139942,105200.0,105190.0,0.1873]
[1749935881643,1.48032264,105200.0,105190.0,0.1873]
[1749935881879,1.47139942,105200.0,105190.0,0.1873]
[1749935882320,1.48032273,105200.0,105190.0,0.1873]
[1749935882550,0.48700399,105200.0,105190.0,0.45305008]
[1749935882798,0.46793108,105200.0,105190.0,0.4815688]
[1749935883248,1.07874424,105200.0,105190.0,0.4815688]
[1749935883467,1.07932661,105200.0,105190.0,0.4815688]
[1749935883689,1.09775501,105200.0,105190.0,0.4815688]
[1749935883914,1.08883222,105200.0,105190.0,0.40595086]
[1749935884171,1.09775501,105200.0,105190.0,0.40595086]
[1749935884403,0.48694188,105200.0,105190.0,0.39644489]
[1749935884636,0.48694187,105200.0,105190.0,0.40595095]
[1749935884897,0.48694182,105200.0,105190.0,0.40595095]
[1749935885132,0.48693974,105200.0,105190.0,0.40595095]
[1749935885350,0.48693977,105200.0,105190.0,0.40595095]
[1749935885563,0.10891832,105200.0,105190.0,0.51160614]
[1749935885799,0.73874171,105200.0,105190.0,0.51160614]
[1749935886002,0.11900802,105200.0,105190.0,0.51160614]
[1749935886210,0.1184232,105200.0,105190.0,0.51160614]
[1749935886424,0.11900793,105200.0,105190.0,0.51160614]
[1749935886672,0.12792845,105200.0,105190.0,0.51160614]
[1749935886854,0.11900793,105200.0,105190.0,0.51160614]
[1749935887071,0.12792828,105200.0,105190.0,0.51160614]
[1749935887281,0.13743371,105200.0,105190.0,0.51160614]
[1749935887498,0.12792828,105200.0,105190.0,0.51160614]
[1749935887717,0.12851327,105200.0,105190.0,0.41545692]
[1749935887931,0.13743362,105200.0,105190.0,0.41545692]
[1749935888153,0.12792828,105200.0,105190.0,0.41545692]
[1749935888365,0.09842303,105200.0,105190.0,0.41545692]
[1749935888572,0.11743371,105200.0,105190.0,0.41545692]
[1749935888799,0.10851336,105200.0,105190.0,0.45597692]
[1749935889010,0.10851327,105200.0,105190.0,0.45597692]
[1749935889237,0.09750547,105200.0,105190.0,0.45597692]
[1749935889482,1.27507188,105210.0,105200.0,0.22141406]
[1749935889707,0.368577,105210.0,105200.0,0.22141406]
[1749935889940,0.71544845,105220.0,105210.0,0.23090069]
[1749935890162,1.3357655,105220.0,105210.0,0.1871]
[1749935890380,1.32626206,105220.0,105210.0,0.1871]
[1749935890830,1.35483706,105220.0,105210.0,0.1871]
[1749935892387,1.39321367,105220.0,105210.0,0.1871]
[1749935896491,1.48945543,105220.0,105210.0,0.1871]
[1749935896698,1.58560465,105220.0,105210.0,0.0313]
[1749935896901,1.58560465,105220.0,105210.0,0.1871]
[1749935901388,1.59451983,105220.0,105210.0,0.1871]
[1749935901616,1.59451984,105220.0,105210.0,0.1871]
[1749935902050,1.58560465,105220.0,105210.0,0.1871]
[1749935902253,1.59451984,105220.0,105210.0,0.1871]
[1749935902459,1.59451982,105220.0,105210.0,0.1871]
[1749935902876,1.59451983,105220.0,105210.0,0.1871]
[1749935903732,1.58560465,105220.0,105210.0,0.1871]
[1749935903963,1.59451981,105220.0,105210.0,0.18706]
[1749935904878,1.58560465,105220.0,105210.0,0.18706]
[1749935905079,1.59451982,105220.0,105210.0,0.18706]
[1749935905287,2.19641781,105220.0,105210.0,0.17166]
[1749935905505,1.58560465,105220.0,105210.0,0.17166]
[1749935905717,1.5945198,105220.0,105210.0,0.18706]
[1749935905959,1.59451986,105220.0,105210.0,0.18706]
[1749935906177,1.48945543,105220.0,105210.0,0.18706]
[1749935906622,1.49837066,105220.0,105210.0,0.18706]
[1749935906836,1.49837067,105220.0,105210.0,0.18706]
[1749935907056,1.49837061,105220.0,105210.0,0.18706]
[1749935907273,1.49837066,105220.0,105210.0,0.18706]
[1749935907490,1.59451988,105220.0,105210.0,0.18706]
[1749935907730,1.58560465,105220.0,105210.0,0.18706]
[1749935907974,1.59451756,105220.0,105210.0,0.18706]
[1749935908173,1.49836832,105220.0,105210.0,0.18706]
[1749935908630,0.88755513,105220.0,105210.0,0.18706]
[1749935908839,1.48945543,105220.0,105210.0,0.18706]
[1749935909050,1.49836826,105220.0,105210.0,0.18706]
[1749935909467,1.48945543,105220.0,105210.0,0.18706]
[1749935909694,1.49836829,105220.0,105210.0,0.18706]
[1749935910351,1.49836818,105220.0,105210.0,0.18706]
[1749935910561,1.59451748,105220.0,105210.0,0.0313]
[1749935910760,1.49836819,105220.0,105210.0,0.18706]
[1749935910969,1.48945543,105220.0,105210.0,0.18706]
[1749935911195,1.4983682,105220.0,105210.0,0.18706]
[1749935911393,1.48945543,105220.0,105210.0,0.18706]
[1749935911605,1.49836805,105220.0,105210.0,0.18706]
[1749935911812,1.49836803,105220.0,105210.0,0.18706]
[1749935912254,1.49836805,105220.0,105210.0,0.18706]
[1749935912470,1.49836803,105220.0,105210.0,0.0313]
[1749935912677,1.49836803,105220.0,105210.0,0.18706]
[1749935912881,1.4983681,105220.0,105210.0,0.18706]
[1749935913082,0.87864227,105220.0,105210.0,0.18706]
[1749935913316,1.4983681,105220.0,105210.0,0.18706]
[1749935913785,1.48945543,105220.0,105210.0,0.18706]
[1749935913998,1.49836802,105220.0,105210.0,0.18706]
[1749935914231,1.48945543,105220.0,105210.0,0.18706]
[1749935914455,1.49836801,105220.0,105210.0,0.18706]
[1749935914673,1.49836797,105220.0,105210.0,0.18706]
[1749935914937,1.48945543,105220.0,105210.0,0.18706]
[1749935915174,1.49837123,105220.0,105210.0,0.18706]
[1749935915402,1.48945543,105220.0,105210.0,0.18706]
[1749935915810,1.50728707,105220.0,105210.0,0.18706]
[1749935916020,1.51620288,105220.0,105210.0,0.18706]
[1749935916225,1.49837115,105220.0,105210.0,0.18706]
[1749935916524,1.51620259,105220.0,105210.0,0.18706]
[1749935916735,1.33075183,105220.0,105210.0,0.18706]
[1749935916949,1.34858313,105220.0,105210.0,0.18706]
[1749935917150,1.34858327,105220.0,105210.0,0.18706]
[1749935917358,1.34858326,105220.0,105210.0,0.18706]
[1749935917567,1.32183619,105220.0,105210.0,0.18706]
[1749935917778,1.33966765,105220.0,105210.0,0.18706]
[1749935917986,1.34858338,105220.0,105210.0,0.18706]
[1749935918206,0.71993876,105220.0,105210.0,0.18706]
[1749935918412,1.34858338,105220.0,105210.0,0.18706]
[1749935918619,1.33966767,105220.0,105210.0,0.18706]
[1749935918827,1.32183619,105220.0,105210.0,0.18706]
[1749935919063,1.43582936,105220.0,105210.0,0.18706]
[1749935919278,1.44475133,105220.0,105210.0,0.18706]
[1749935919711,1.43582936,105220.0,105210.0,0.18706]
[1749935920145,1.44475133,105220.0,105210.0,0.18706]
[1749935920355,1.42690738,105220.0,105210.0,0.18706]
[1749935920577,1.44475133,105220.0,105210.0,0.18706]
[1749935921062,1.42690738,105220.0,105210.0,0.18706]
[1749935921297,1.41798541,105220.0,105210.0,0.18706]
[1749935921461,1.42690738,105220.0,105210.0,0.18706]
[1749935921870,1.41798541,105220.0,105210.0,0.18706]
[1749935922023,1.42690738,105220.0,105210.0,0.18706]